bitfinex/quotes_BTCUSD_20240617
["timestamp","ask_amount","ask_price","bid_price","bid_amount"]
[1718622219961,1.30273145,65970.0,65969.0,0.18166774]
[1718622220524,1.30250499,65970.0,65969.0,0.18166723]
[1718622221331,1.51927299,65970.0,65969.0,0.18166723]
[1718622221603,1.51927299,65970.0,65969.0,0.18166763]
[1718622222345,1.51927299,65970.0,65969.0,0.05583046]
[1718622222553,1.51927299,65970.0,65969.0,0.17366876]
[1718622223193,1.51927299,65970.0,65969.0,0.17166941]
[1718622223612,1.51927299,65970.0,65969.0,0.17766941]
[1718622223830,1.51919995,65970.0,65969.0,0.17766941]
[1718622225519,1.21603195,65970.0,65969.0,0.17766941]
[1718622226262,1.51919995,65970.0,65969.0,0.17766941]
[1718622226899,1.61919995,65970.0,65969.0,0.17766941]
[1718622227137,1.51919995,65970.0,65969.0,0.05183046]
[1718622227584,1.61919995,65970.0,65969.0,0.05183046]
[1718622227791,1.51919995,65970.0,65969.0,0.05183046]
[1718622228002,1.60559995,65970.0,65969.0,0.05183046]
[1718622229260,1.6057999,65970.0,65969.0,0.05183046]
[1718622229570,1.6057999,65970.0,65969.0,0.1776748]
[1718622231702,1.85788769,65970.0,65969.0,8e-07]
[1718622231911,1.85788769,65970.0,65945.0,0.01805179]
[1718622231912,0.15162,65954.0,65945.0,0.01805179]
[1718622232148,0.2928583,65954.0,65953.0,0.04662824]
[1718622232335,1.2025813,65954.0,65953.0,0.04662824]
[1718622232992,1.5058223,65954.0,65953.0,0.04662824]
[1718622233198,1.1825813,65954.0,65953.0,0.04112773]
[1718622233832,1.1825813,65954.0,65953.0,0.02712773]
[1718622234299,1.1825813,65954.0,65953.0,0.02812773]
[1718622234504,1.2025813,65954.0,65953.0,0.02812773]
[1718622234923,1.1825813,65954.0,65953.0,0.02812773]
[1718622235134,1.2025813,65954.0,65953.0,0.02812773]
[1718622237020,1.5922223,65954.0,65953.0,0.02812773]
[1718622238084,1.5193223,65954.0,65953.0,0.02812773]
[1718622238304,1.5922223,65954.0,65953.0,0.02812773]
[1718622239031,1.543884,65954.0,65953.0,0.02812773]
[1718622239254,1.59220333,65954.0,65953.0,0.02812773]
[1718622241317,1.543884,65954.0,65953.0,0.02812773]
[1718622242341,1.470984,65954.0,65953.0,0.02812773]
[1718622242548,1.543884,65954.0,65953.0,0.02812773]
[1718622243706,1.220643,65954.0,65953.0,0.02812773]
[1718622243912,1.061343,65954.0,65953.0,0.02812773]
[1718622244111,1.134243,65954.0,65953.0,0.02812773]
[1718622245681,0.758102,65954.0,65953.0,0.09062773]
[1718622245886,0.831002,65954.0,65953.0,0.09062773]
[1718622246464,0.831002,65954.0,65953.0,0.08962773]
[1718622247040,0.060671,65964.0,65955.0,0.0645]
[1718622247323,0.1139056,65970.0,65955.0,0.0645]
[1718622247324,0.151616,65956.0,65955.0,0.0645]
[1718622247526,0.75808,65956.0,65955.0,0.09079137]
[1718622247842,0.0729,65959.0,65955.0,0.09079137]
[1718622248041,0.376122,65959.0,65955.0,0.10160208]
[1718622248268,0.151614,65957.0,65955.0,0.10160208]
[1718622248475,0.151616,65956.0,65955.0,0.10160208]
[1718622248675,0.151616,65956.0,65955.0,0.12836391]
[1718622248877,0.454848,65956.0,65955.0,0.12836391]
[1718622249085,0.454848,65956.0,65955.0,0.09126183]
[1718622249334,0.75808,65956.0,65955.0,0.09126183]
[1718622249541,0.454848,65956.0,65955.0,0.09126183]
[1718622250561,0.151613,65958.0,65955.0,0.09126183]
[1718622250901,0.151608,65960.0,65955.0,0.0645]
[1718622251033,0.151608,65960.0,65956.0,0.05242408]
[1718622251230,0.15161,65959.0,65956.0,0.05242408]
[1718622251460,0.151612,65958.0,65957.0,0.1386]
[1718622251670,0.30318,65968.0,65959.0,0.151608]
[1718622251830,0.151603,65962.0,65960.0,0.06934734]
[1718622252031,0.303201,65963.0,65960.0,0.06934734]
[1718622252249,0.151604,65961.0,65957.0,0.1386]
[1718622252638,0.30318,65968.0,65957.0,0.1386]
[1718622252639,0.303203,65963.0,65957.0,0.1386]
[1718622252852,0.30318,65968.0,65962.0,0.1411]
[1718622252853,0.15159,65968.0,65962.0,0.1411]
[1718622253104,0.0139056,65970.0,65968.0,0.0628]
[1718622253281,0.0139056,65970.0,65969.0,0.229786]
[1718622253500,0.0139056,65970.0,65969.0,0.10474471]
[1718622253727,0.4686576,65970.0,65969.0,0.10474471]
[1718622254139,0.1654896,65970.0,65969.0,0.10474471]
[1718622255572,0.4686576,65970.0,65969.0,0.13665868]
[1718622255781,0.1654896,65970.0,65969.0,0.13665868]
[1718622256202,0.1654896,65970.0,65969.0,0.10474471]
[1718622256467,0.0139056,65970.0,65969.0,0.10474471]
[1718622256686,0.0139056,65970.0,65969.0,0.40791671]
[1718622256928,0.0139056,65970.0,65969.0,0.59483383]
[1718622257131,0.0139056,65970.0,65969.0,1.20167962]
[1718622257332,0.0139056,65970.0,65969.0,1.35376741]
[1718622258206,0.0139056,65970.0,65969.0,1.05059541]
[1718622258844,0.0139056,65970.0,65969.0,1.35376741]
[1718622259057,0.0139056,65970.0,65969.0,1.37376741]
[1718622261245,0.0139056,65970.0,65969.0,1.35376741]
[1718622262488,0.0139056,65970.0,65969.0,1.37376741]
[1718622262640,0.009383,65972.0,65971.0,0.977907]
[1718622262835,0.009383,65972.0,65971.0,1.85163883]
[1718622263063,0.009383,65972.0,65971.0,2.27287001]
[1718622263260,0.009383,65972.0,65971.0,2.46156095]
[1718622263626,0.009383,65972.0,65971.0,2.25480183]
[1718622263837,0.009383,65972.0,65971.0,2.33007379]
[1718622264055,0.009383,65972.0,65971.0,2.53981766]
[1718622264257,0.009383,65972.0,65971.0,2.13665466]
[1718622264464,0.009383,65972.0,65971.0,1.92991079]
[1718622264874,0.009383,65972.0,65971.0,2.02991079]
[1718622265370,0.009383,65972.0,65971.0,2.2366508]
[1718622265582,0.009383,65972.0,65971.0,2.02987584]
[1718622265785,0.009383,65972.0,65971.0,2.02687584]
[1718622266740,0.009383,65972.0,65971.0,2.04087584]
[1718622267406,0.009383,65972.0,65971.0,2.04087535]
[1718622267631,0.151524,65996.0,65990.0,0.151536]
[1718622267840,0.00853,66002.0,65991.0,0.0454628]
[1718622267841,0.151533,65992.0,65991.0,0.0454628]
[1718622268046,0.303066,65993.0,65987.0,0.251544]
[1718622268247,0.303036,65999.0,65987.0,0.25208779]
[1718622268466,0.151534,65992.0,65987.0,0.40363079]
[1718622268684,0.303041,65998.0,65988.0,0.323083]
[1718622268889,0.151535,65992.0,65989.0,0.10276718]
[1718622270856,0.303045,65997.0,65989.0,0.10276718]
[1718622271046,0.303056,65995.0,65989.0,0.12276718]
[1718622271484,0.151533,65993.0,65989.0,0.12276718]
[1718622271659,0.151533,65993.0,65990.0,0.0662297]
[1718622272876,0.15153,65994.0,65990.0,0.0862297]
[1718622273688,0.15153,65994.0,65990.0,0.0662297]
[1718622274411,0.15153,65994.0,65991.0,0.12577449]
[1718622274557,0.151532,65993.0,65992.0,0.12577449]
[1718622274761,0.151532,65993.0,65992.0,0.15203184]
[1718622275547,0.15153,65994.0,65992.0,0.15203184]
[1718622275830,0.15153,65994.0,65993.0,0.12577449]
[1718622276138,0.15153,65994.0,65993.0,0.15377342]
[1718622276339,0.303039,65998.0,65993.0,0.20651763]
[1718622276472,0.151526,65995.0,65994.0,0.12577449]
[1718622276692,0.151526,65995.0,65994.0,0.15377342]
[1718622276892,0.454579,65995.0,65994.0,0.33860205]
[1718622277094,0.151526,65995.0,65994.0,0.33860205]
[1718622277508,0.151526,65995.0,65994.0,0.33860125]
[1718622277669,0.454579,65995.0,65994.0,0.33860125]
[1718622280728,0.151526,65995.0,65994.0,0.33860125]
[1718622280929,0.151526,65995.0,65994.0,0.25850125]
[1718622281142,0.151526,65995.0,65994.0,0.19620125]
[1718622282501,0.152526,65995.0,65994.0,0.19620125]
[1718622282705,0.001,65995.0,65994.0,0.15377262]
[1718622283069,0.152526,65995.0,65994.0,0.15377262]
[1718622284098,0.455579,65995.0,65994.0,0.15377262]
[1718622284296,0.758632,65995.0,65994.0,0.15377262]
[1718622285116,0.152526,65995.0,65994.0,0.15377262]
[1718622285491,0.455579,65995.0,65994.0,0.15377262]
[1718622286053,0.001,65995.0,65994.0,0.3169821]
[1718622286905,0.455579,65995.0,65994.0,0.3169821]
[1718622287377,0.454579,65995.0,65994.0,0.3169821]
[1718622287776,0.454579,65995.0,65994.0,0.3239821]
[1718622288442,0.454579,65995.0,65994.0,0.53067993]
[1718622288644,0.454579,65995.0,65994.0,0.53267993]
[1718622288859,0.454579,65995.0,65994.0,0.20020841]
[1718622289074,0.454579,65995.0,65994.0,0.53267246]
[1718622289903,0.303042,65998.0,65994.0,0.53267246]
[1718622290107,0.00853,66002.0,65995.0,0.4028847]
[1718622290233,0.151519,65998.0,65996.0,0.12577417]
[1718622290440,0.00853,66002.0,65997.0,0.12577417]
[1718622290645,0.151517,65999.0,65998.0,0.18702226]
[1718622290847,0.454551,65999.0,65998.0,0.21425796]
[1718622291051,0.454551,65999.0,65998.0,0.15300987]
[1718622291252,0.454551,65999.0,65998.0,0.35969455]
[1718622291477,0.757585,65999.0,65998.0,0.35969455]
[1718622291890,0.757585,65999.0,65998.0,0.36169455]
[1718622292088,0.757585,65999.0,65998.0,0.15500987]
[1718622292486,0.757585,65999.0,65998.0,0.36169542]
[1718622292668,0.757585,65999.0,65998.0,0.35933542]
[1718622293067,0.757585,65999.0,65998.0,0.40153896]
[1718622293279,0.454551,65999.0,65998.0,0.40153896]
[1718622293480,0.867285,65999.0,65998.0,0.35933542]
[1718622294307,0.867285,65999.0,65998.0,0.15264987]
[1718622294510,0.564251,65999.0,65998.0,0.35933495]
[1718622295320,0.564251,65999.0,65998.0,0.15264987]
[1718622296194,0.867285,65999.0,65998.0,0.15264987]
[1718622296916,0.940085,65999.0,65998.0,0.15264987]
[1718622297637,0.960085,65999.0,65998.0,0.15264987]
[1718622297923,1.263119,65999.0,65998.0,0.15264987]
[1718622298809,1.243119,65999.0,65998.0,0.15264987]
[1718622299015,0.940085,65999.0,65998.0,0.0292357]
[1718622300909,1.243119,65999.0,65998.0,0.0292357]
[1718622301346,1.263119,65999.0,65998.0,0.03988927]
[1718622301908,1.243119,65999.0,65998.0,0.03988927]
[1718622302514,1.243119,65999.0,65998.0,0.1656672]
[1718622305484,1.200119,65999.0,65998.0,0.15501307]
[1718622306664,1.220119,65999.0,65998.0,0.15501307]
[1718622307260,1.5685407,65999.0,65998.0,0.0292357]
[1718622307462,1.263119,65999.0,65998.0,0.0292357]
[1718622308465,1.25840056,65999.0,65998.0,0.0292357]
[1718622308708,1.33120056,65999.0,65998.0,0.0292357]
[1718622308932,1.33128808,65999.0,65998.0,0.0292357]
[1718622309893,1.25848808,65999.0,65998.0,0.0292357]
[1718622310098,1.33128808,65999.0,65998.0,0.0292357]
[1718622310544,1.243119,65999.0,65998.0,0.0292357]
[1718622310747,1.060619,65999.0,65998.0,0.1550129]
[1718622310947,1.133419,65999.0,65998.0,0.1550129]
[1718622311755,1.18215053,65999.0,65998.0,0.1550129]
[1718622314618,0.80631653,65999.0,65998.0,0.1550129]
[1718622314787,0.80631653,65999.0,65998.0,0.2327129]
[1718622319502,0.80630393,65999.0,65998.0,0.2327129]
[1718622320086,0.80630407,65999.0,65998.0,0.23270677]
[1718622321641,0.80630407,65999.0,65998.0,0.26250745]
[1718622323723,0.80630407,65999.0,65998.0,0.23270677]
[1718622325364,0.80630407,65999.0,65998.0,0.15500677]
[1718622326606,0.80630407,65999.0,65998.0,0.15594177]
[1718622326941,0.80715407,65999.0,65998.0,0.15594177]
[1718622328235,0.50412007,65999.0,65998.0,0.15594177]
[1718622328468,0.50412007,65999.0,65998.0,0.30134177]
[1718622328469,0.758435,65999.0,65998.0,0.30134177]
[1718622328894,0.758435,65999.0,65998.0,0.30133786]
[1718622329107,0.80674062,65999.0,65998.0,0.33147204]
[1718622330177,0.75825264,65999.0,65998.0,0.33147204]
[1718622330400,0.00085,65999.0,65998.0,0.33147204]
[1718622330789,0.152367,65999.0,65998.0,0.33147204]
[1718622331711,0.46416018,65999.0,65998.0,0.33147204]
[1718622331946,0.16112618,65999.0,65998.0,0.33147204]
[1718622332152,0.46416018,65999.0,65998.0,0.33147204]
[1718622332368,0.00960918,65999.0,65998.0,0.65507883]
[1718622332573,0.00960918,65999.0,65998.0,1.01091783]
[1718622332785,0.00085,65999.0,65998.0,1.01091783]
[1718622333010,0.00085,65999.0,65998.0,0.70787883]
[1718622333639,0.00085,65999.0,65998.0,1.01091783]
[1718622334029,0.00085,65999.0,65998.0,1.03091783]
[1718622334250,0.00085,65999.0,65998.0,1.75999583]
[1718622334886,0.00085,65999.0,65998.0,1.94864657]
[1718622335137,0.00085,65999.0,65998.0,2.30840465]
[1718622335627,0.00085,65999.0,65998.0,2.35135572]
[1718622335837,0.00085,65999.0,65998.0,2.45135572]
[1718622336062,0.00085,65999.0,65998.0,2.46535572]
[1718622336274,0.00085,65999.0,65998.0,2.28200212]
[1718622336482,0.00085,65999.0,65998.0,1.90616312]
[1718622336691,0.00085,65999.0,65998.0,1.78331238]
[1718622336896,0.00085,65999.0,65998.0,1.76931238]
[1718622337110,0.00085,65999.0,65998.0,1.79431238]
[1718622337562,0.00085,65999.0,65998.0,1.45495683]
[1718622337768,0.00085,65999.0,65998.0,1.77199583]
[1718622338411,0.00852,66016.0,66001.0,0.777562]
[1718622338636,0.05396334,66027.0,66026.0,0.151455]
[1718622338637,0.00852,66027.0,66026.0,0.151455]
[1718622338847,0.00852,66027.0,66026.0,0.30145445]
[1718622339115,0.00852,66027.0,66026.0,1.13152945]
[1718622339352,0.00852,66027.0,66026.0,0.95161945]
[1718622339567,0.00852,66027.0,66026.0,0.57654224]
[1718622339568,0.159973,66027.0,66026.0,0.57654224]
[1718622339785,0.159973,66027.0,66026.0,0.6296798]
[1718622339786,0.00852,66027.0,66026.0,0.6296798]
[1718622340014,0.462879,66027.0,66026.0,0.5296798]
[1718622340234,0.159973,66027.0,66026.0,0.22889201]
[1718622340448,0.47491191,66027.0,66026.0,0.15275445]
[1718622340664,1.15052391,66027.0,66026.0,0.0270178]
[1718622340873,0.84761791,66027.0,66026.0,0.0270178]
[1718622341071,0.84761791,66027.0,66020.0,0.0612]
[1718622341072,0.302914,66026.0,66020.0,0.0612]
[1718622341280,0.302914,66026.0,66021.0,0.32194044]
[1718622341281,0.151466,66022.0,66021.0,0.32194044]
[1718622341489,0.151466,66022.0,66021.0,0.34901537]
[1718622341694,0.76635691,66022.0,66021.0,0.34901537]
[1718622341898,0.76635691,66022.0,66021.0,0.02707493]
[1718622342326,1.06928591,66022.0,66021.0,0.02707493]
[1718622342535,0.75739,66016.0,66015.0,0.02728439]
[1718622342742,0.15148,66015.0,66014.0,0.06]
[1718622342948,0.15148,66015.0,66014.0,0.07795682]
[1718622342949,0.16051291,66015.0,66014.0,0.07795682]
[1718622343154,0.76643491,66015.0,66014.0,0.197329]
[1718622343580,1.06939591,66015.0,66014.0,0.2351519]
[1718622343787,0.76643491,66015.0,66014.0,0.2351519]
[1718622344494,0.76643491,66015.0,66014.0,0.2441519]
[1718622344699,1.06939591,66015.0,66014.0,0.03628439]
[1718622345107,1.11239591,66015.0,66014.0,0.03628439]
[1718622345304,1.13239591,66015.0,66014.0,0.03628439]
[1718622345551,1.11239591,66015.0,66014.0,0.05028439]
[1718622345751,1.11239591,66015.0,66014.0,0.02728439]
[1718622346165,1.06939591,66015.0,66014.0,0.003]
[1718622346825,1.06939591,66015.0,66014.0,0.002]
[1718622347032,1.08939591,66015.0,66014.0,0.002]
[1718622348375,1.08939591,66015.0,66014.0,0.02874209]
[1718622348577,1.06939591,66015.0,66014.0,0.02874209]
[1718622349910,1.07299743,66015.0,66014.0,0.02874209]
[1718622351885,1.08299743,66015.0,66014.0,0.02874209]
[1718622352092,1.09299743,66015.0,66014.0,0.02874209]
[1718622352497,1.07299743,66015.0,66014.0,0.02874209]
[1718622353496,0.46707543,66015.0,66014.0,0.02874209]
[1718622353715,0.46707543,66015.0,66014.0,0.1152163]
[1718622353929,0.77003643,66015.0,66014.0,0.1152163]
[1718622354175,0.46707543,66015.0,66014.0,0.1152163]
[1718622354850,0.77003643,66015.0,66014.0,0.1152163]
[1718622355069,0.46707543,66015.0,66014.0,0.1152163]
[1718622355281,0.77003643,66015.0,66014.0,0.1152163]
[1718622355481,0.77003643,66015.0,66014.0,0.10584209]
[1718622355919,0.77003643,66015.0,66014.0,0.02874209]
[1718622356346,1.07299743,66015.0,66014.0,0.02874209]
[1718622356545,0.77003643,66015.0,66014.0,0.02874209]
[1718622356748,1.09299743,66015.0,66014.0,0.02874209]
[1718622357168,1.39595843,66015.0,66014.0,0.02874209]
[1718622357371,1.43895843,66015.0,66014.0,0.02874209]
[1718622358200,1.18285735,66015.0,66014.0,0.02874209]
[1718622359084,1.48581835,66015.0,66014.0,0.02874209]
[1718622359458,1.18285735,66015.0,66014.0,0.02874209]
[1718622361143,1.18284422,66015.0,66014.0,0.02874209]
[1718622361386,1.13419743,66015.0,66014.0,0.02874209]
[1718622361590,1.09119743,66015.0,66014.0,0.02874209]
[1718622361796,1.13984307,66015.0,66014.0,0.02874209]
[1718622362354,1.11984307,66015.0,66014.0,0.02874209]
[1718622362554,1.13984307,66015.0,66014.0,0.02874209]
[1718622362922,1.09119743,66015.0,66014.0,0.02874209]
[1718622363345,1.13988275,66015.0,66014.0,0.02874209]
[1718622363744,1.11988275,66015.0,66014.0,0.02874209]
[1718622363944,0.81692175,66015.0,66014.0,0.02874209]
[1718622364142,0.76823643,66015.0,66014.0,0.02874209]
[1718622364840,1.07119743,66015.0,66014.0,0.02874209]
[1718622367237,0.76823643,66015.0,66014.0,0.02874209]
[1718622367700,1.07119743,66015.0,66014.0,0.02874209]
[1718622368994,1.09119743,66015.0,66014.0,0.02874209]
[1718622369377,1.13992564,66015.0,66014.0,0.02874209]
[1718622369948,1.11992564,66015.0,66014.0,0.02874209]
[1718622373057,1.11986855,66015.0,66014.0,0.02874209]
[1718622373328,1.44282955,66015.0,66014.0,0.02874209]
[1718622373570,1.56882955,66015.0,66014.0,0.02874209]
[1718622373787,1.82091734,66015.0,66014.0,0.02874209]
[1718622373984,2.12387834,66015.0,66014.0,0.02874209]
[1718622374818,2.21438128,66015.0,66014.0,0.02703098]
[1718622375024,2.33204235,66015.0,66014.0,0.02703098]
[1718622375399,2.33204235,66015.0,65998.0,0.000935]
[1718622375400,1.796687,65999.0,65998.0,0.000935]
[1718622375571,1.84520852,65999.0,65998.0,0.000935]
[1718622375809,1.89052861,65999.0,65998.0,0.000935]
[1718622376010,1.86601164,65999.0,65998.0,0.000935]
[1718622376455,1.95431337,65999.0,65998.0,0.000935]
[1718622376656,1.55127937,65999.0,65998.0,0.000935]
[1718622377014,1.20524537,65999.0,65998.0,0.000935]
[1718622377215,1.14994364,65999.0,65998.0,0.000935]
[1718622378436,1.14994364,65999.0,65998.0,0.001935]
[1718622378654,0.82690964,65999.0,65998.0,0.000935]
[1718622378863,0.78038812,65999.0,65998.0,0.001935]
[1718622379080,0.78438812,65999.0,65998.0,0.001935]
[1718622379727,0.78238812,65999.0,65998.0,0.000935]
[1718622379906,0.77838812,65999.0,65998.0,0.000935]
[1718622380158,0.78038812,65999.0,65998.0,0.000935]
[1718622380363,0.78038812,65999.0,65998.0,0.004935]
[1718622380784,1.08342212,65999.0,65998.0,0.004935]
[1718622381166,1.10342212,65999.0,65998.0,0.004935]
[1718622381535,1.10342212,65999.0,65998.0,0.000935]
[1718622381536,1.08342212,65999.0,65998.0,0.000935]
[1718622381741,1.08242212,65999.0,65998.0,0.000935]
[1718622382106,1.08342212,65999.0,65998.0,0.000935]
[1718622382518,1.08142212,65999.0,65998.0,0.000935]
[1718622383142,1.10342212,65999.0,65998.0,0.000935]
[1718622383262,1.08342212,65999.0,65998.0,0.000935]
[1718622383874,1.10342212,65999.0,65998.0,0.000935]
[1718622384281,1.08342212,65999.0,65998.0,0.000935]
[1718622384684,1.08142212,65999.0,65998.0,0.000935]
[1718622384883,1.08242212,65999.0,65998.0,0.000935]
[1718622385106,1.08442212,65999.0,65998.0,0.000935]
[1718622386564,1.10442212,65999.0,65998.0,0.000935]
[1718622386772,1.40745612,65999.0,65998.0,0.000935]
[1718622386988,1.10442212,65999.0,65998.0,0.000935]
[1718622387420,1.08442212,65999.0,65998.0,0.000935]
[1718622388180,1.10442212,65999.0,65998.0,0.000935]
[1718622389210,1.08442212,65999.0,65998.0,0.000935]
[1718622392878,1.10442212,65999.0,65998.0,0.000935]
[1718622393441,1.08442212,65999.0,65998.0,0.000935]
[1718622395364,1.13266241,65999.0,65998.0,0.000935]
[1718622396200,0.52659441,65999.0,65998.0,0.065535]
[1718622396374,0.47835412,65999.0,65998.0,0.145435]
[1718622396578,0.78138812,65999.0,65998.0,0.145435]
[1718622397587,0.77938812,65999.0,65998.0,0.145435]
[1718622397788,1.08342212,65999.0,65998.0,0.000935]
[1718622397992,0.78038812,65999.0,65998.0,0.0090085]
[1718622398210,0.77938812,65999.0,65998.0,0.0090085]
[1718622398410,1.08242212,65999.0,65998.0,0.0090085]
[1718622398616,0.79938812,65999.0,65998.0,0.0130085]
[1718622398820,0.79938812,65999.0,65998.0,0.004935]
[1718622399022,0.77938812,65999.0,65998.0,0.004935]
[1718622399340,1.08242212,65999.0,65998.0,0.004935]
[1718622400393,0.82765148,65999.0,65998.0,0.004935]
[1718622400815,1.13068548,65999.0,65998.0,0.004935]
[1718622401435,0.52461748,65999.0,65998.0,0.0200585]
[1718622402038,0.77938812,65999.0,65998.0,0.0200585]
[1718622402258,0.82813555,65999.0,65998.0,0.0200585]
[1718622403369,0.82813858,65999.0,65998.0,0.1458316]
[1718622403993,1.13117258,65999.0,65998.0,0.1307081]
[1718622404204,1.13117258,65999.0,65998.0,0.004935]
[1718622404417,0.82813858,65999.0,65998.0,0.004935]
[1718622404862,1.13117258,65999.0,65998.0,0.004935]
[1718622405099,0.82813858,65999.0,65998.0,0.0200585]
[1718622405749,1.13113228,65999.0,65998.0,0.0200585]
[1718622406387,0.82809828,65999.0,65998.0,0.004935]
[1718622406803,1.13113228,65999.0,65998.0,0.004935]
[1718622408518,1.15113228,65999.0,65998.0,0.004935]
[1718622409163,1.15115118,65999.0,65998.0,0.004935]
[1718622409832,1.45418518,65999.0,65998.0,0.004935]
[1718622410281,1.15115118,65999.0,65998.0,0.004935]
[1718622412688,1.45418518,65999.0,65998.0,0.004935]
[1718622412915,1.15115118,65999.0,65998.0,0.004935]
[1718622413351,1.45418518,65999.0,65998.0,0.004935]
[1718622413761,1.15115118,65999.0,65998.0,0.004935]
[1718622414185,1.45418518,65999.0,65998.0,0.004935]
[1718622414352,1.49953649,65999.0,65998.0,0.004935]
[1718622414752,1.49956606,65999.0,65998.0,0.004935]
[1718622414938,1.19653206,65999.0,65998.0,0.004935]
[1718622415138,1.15115118,65999.0,65998.0,0.004935]
[1718622415955,1.45418518,65999.0,65998.0,0.004935]
[1718622416376,1.19653206,65999.0,65998.0,0.004935]
[1718622416986,1.13115118,65999.0,65998.0,0.004935]
[1718622417574,1.15115118,65999.0,65998.0,0.004935]
[1718622418003,1.13115118,65999.0,65998.0,0.004935]
[1718622418629,1.19653206,65999.0,65998.0,0.004935]
[1718622418850,1.15115118,65999.0,65998.0,0.004935]
[1718622419280,1.21917815,65999.0,65998.0,0.004935]
[1718622421249,1.45418518,65999.0,65998.0,0.004935]
[1718622421418,1.15115118,65999.0,65998.0,0.004935]
[1718622421752,1.45418518,65999.0,65998.0,0.004935]
[1718622422315,1.54488781,65999.0,65998.0,0.004935]
[1718622423324,1.54501122,65999.0,65998.0,0.004935]
[1718622423557,1.61781122,65999.0,65998.0,0.004935]
[1718622424471,1.31477722,65999.0,65998.0,0.004935]
[1718622424945,1.31480713,65999.0,65998.0,0.004935]
[1718622425192,1.61784113,65999.0,65998.0,0.004935]
[1718622425827,1.31480713,65999.0,65998.0,0.004935]
[1718622426915,1.61784113,65999.0,65998.0,0.004935]
[1718622427138,1.52692609,65999.0,65998.0,0.004935]
[1718622427398,1.5269015,65999.0,65998.0,0.004935]
[1718622429088,1.6699015,65999.0,65998.0,0.004935]
[1718622429570,1.5699015,65999.0,65998.0,0.004935]
[1718622429970,1.6699015,65999.0,65998.0,0.004935]
[1718622431025,1.6689015,65999.0,65998.0,0.004935]
[1718622431416,1.57087586,65999.0,65998.0,0.001935]
[1718622431626,1.67387586,65999.0,65998.0,0.001935]
[1718622432452,1.90200754,65999.0,65998.0,0.001935]
[1718622432810,2.20504154,65999.0,65998.0,0.001935]
[1718622433020,2.28614154,65999.0,65998.0,0.001935]
[1718622433609,1.98310754,65999.0,65998.0,0.001935]
[1718622434217,2.28614154,65999.0,65998.0,0.001935]
[1718622434634,1.88310754,65999.0,65998.0,0.001935]
[1718622435647,1.98310754,65999.0,65998.0,0.001935]
[1718622436716,1.24858951,65999.0,65998.0,0.001935]
[1718622436908,1.2732575,65999.0,65998.0,0.001935]
[1718622437111,1.22784186,65999.0,65998.0,0.001935]
[1718622437311,1.29596524,65999.0,65998.0,0.001935]
[1718622437504,1.22784186,65999.0,65998.0,0.001935]
[1718622437705,1.27325736,65999.0,65998.0,0.001935]
[1718622438785,1.20784186,65999.0,65998.0,0.001935]
[1718622438987,0.83200786,65999.0,65998.0,0.0166485]
[1718622439187,0.90480786,65999.0,65998.0,0.001935]
[1718622439455,1.20784186,65999.0,65998.0,0.001935]
[1718622439589,0.90480786,65999.0,65998.0,0.001935]
[1718622439790,1.20784186,65999.0,65998.0,0.001935]
[1718622439989,0.90480786,65999.0,65998.0,0.001935]
[1718622440345,1.20784186,65999.0,65998.0,0.001935]
[1718622440563,0.90480786,65999.0,65998.0,0.001935]
[1718622440768,1.20784186,65999.0,65998.0,0.001935]
[1718622440994,0.52897386,65999.0,65998.0,0.0166485]
[1718622441207,0.48035412,65999.0,65998.0,0.064735]
[1718622441786,0.17732012,65999.0,65998.0,0.064735]
[1718622441964,0.47735412,65999.0,65998.0,0.064735]
[1718622442166,0.78038812,65999.0,65998.0,0.064735]
[1718622442371,0.78138812,65999.0,65998.0,0.071735]
[1718622442584,0.78138812,65999.0,65998.0,0.0868085]
[1718622443193,0.77938812,65999.0,65998.0,0.0858085]
[1718622443400,0.47635412,65999.0,65998.0,0.0858085]
[1718622444083,0.47635412,65999.0,65998.0,0.0868085]
[1718622444295,0.77938812,65999.0,65998.0,0.0868085]
[1718622444494,0.47635412,65999.0,65998.0,0.0868085]
[1718622445418,0.77938812,65999.0,65998.0,0.071735]
[1718622454868,0.77938812,65999.0,65998.0,0.008935]
[1718622455099,1.08242212,65999.0,65998.0,0.008935]
[1718622456837,0.77938812,65999.0,65998.0,0.156135]
[1718622457577,1.08242212,65999.0,65998.0,0.156135]
[1718622458000,0.77938812,65999.0,65998.0,0.156135]
[1718622458202,0.77938812,65999.0,65998.0,0.1717485]
[1718622458729,1.08242212,65999.0,65998.0,0.1717485]
[1718622459329,0.77938812,65999.0,65998.0,0.1717485]
[1718622459798,1.08242212,65999.0,65998.0,0.1717485]
[1718622461642,1.10242212,65999.0,65998.0,0.1717485]
[1718622461888,0.77938812,65999.0,65998.0,0.1717485]
[1718622462063,0.85218812,65999.0,65998.0,0.1717485]
[1718622462263,1.15522212,65999.0,65998.0,0.1717485]
[1718622469055,0.85218812,65999.0,65998.0,0.1717485]
[1718622469472,1.15522212,65999.0,65998.0,0.1717485]
[1718622471479,1.17522212,65999.0,65998.0,0.1717485]
[1718622471679,1.15522212,65999.0,65998.0,0.1717485]
[1718622474333,0.85218812,65999.0,65998.0,0.1717485]
[1718622476000,0.77938812,65999.0,65998.0,0.1717485]
[1718622476200,0.85218812,65999.0,65998.0,0.1717485]
[1718622476620,1.15522212,65999.0,65998.0,0.1717485]
[1718622482035,0.77938812,65999.0,65998.0,0.1717485]
[1718622482265,0.85218812,65999.0,65998.0,0.1717485]
[1718622482486,1.15522212,65999.0,65998.0,0.1717485]
[1718622483338,1.08242212,65999.0,65998.0,0.1717485]
[1718622483549,1.15522212,65999.0,65998.0,0.1717485]
[1718622485522,0.85218812,65999.0,65998.0,0.1717485]
[1718622485732,0.77938812,65999.0,65998.0,0.1717485]
[1718622485959,0.47635412,65999.0,65998.0,0.1717485]
[1718622486399,0.77938812,65999.0,65998.0,0.1717485]
[1718622488351,1.08242212,65999.0,65998.0,0.1717485]
[1718622488562,0.77938812,65999.0,65998.0,0.156135]
[1718622488771,1.08242212,65999.0,65998.0,0.156135]
[1718622488984,0.77938812,65999.0,65998.0,0.156135]
[1718622489922,1.08242212,65999.0,65998.0,0.156135]
[1718622490701,1.17522212,65999.0,65998.0,0.1717485]
[1718622490945,0.87218812,65999.0,65998.0,0.1717485]
[1718622491220,1.17522212,65999.0,65998.0,0.0886485]
[1718622491453,1.17522212,65999.0,65998.0,0.008935]
[1718622491454,1.22069149,65999.0,65998.0,0.008935]
[1718622491730,1.24343556,65999.0,65998.0,0.008935]
[1718622492206,1.17522212,65999.0,65998.0,0.008935]
[1718622495287,1.24342357,65999.0,65998.0,0.008935]